bitfinex/quotes_SOLUSD_20250718
["timestamp","ask_amount","ask_price","bid_price","bid_amount"]
[1752815779264,0.69,184.17,184.07,12.14005311]
[1752815779265,11.45005311,184.13,184.07,12.14005311]
[1752815779668,35.7,184.12,184.08,12.14005311]
[1752815779966,0.69,184.18,184.11,11.45005311]
[1752815780166,23.44,184.33,184.18,26.0]
[1752815780405,11.45005311,184.26,184.2,11.45005311]
[1752815780565,35.7,184.25,184.21,11.45005311]
[1752815781190,35.7,184.25,184.18,0.68]
[1752815781377,35.7,184.25,184.22,11.45005311]
[1752815781578,35.7,184.25,184.21,11.45005311]
[1752815781980,35.7,184.25,184.21,12.13005311]
[1752815782379,35.7,184.25,184.21,0.68]
[1752815782580,35.7,184.25,184.22,11.45005311]
[1752815782987,35.7,184.25,184.23,11.45005311]
[1752815783492,35.7,184.25,184.2,11.45005311]
[1752815783871,35.7,184.24,184.22,11.45005311]
[1752815784066,35.7,184.24,184.21,12.13005311]
[1752815784292,35.7,184.24,184.23,11.45005311]
[1752815784484,35.7,184.24,184.22,12.13005311]
[1752815784684,11.45005311,184.27,184.21,11.45005311]
[1752815784993,6.11625502,184.29,184.13,10.0]
[1752815784994,47.13005311,184.26,184.19,0.68]
[1752815785179,47.13005311,184.26,184.2,11.45005311]
[1752815785384,47.13005311,184.26,184.18,11.45005311]
[1752815785385,11.45005311,184.24,184.18,11.45005311]
[1752815785583,47.13005311,184.23,184.17,11.45005311]
[1752815785970,11.45005311,184.22,184.16,12.13005311]
[1752815786176,11.45005311,184.22,184.1,13.287]
[1752815786177,11.45005311,184.2,184.12,0.68]
[1752815786391,11.45005311,184.18,184.12,12.13005311]
[1752815786586,35.68,184.19,184.12,0.68]
[1752815786903,11.45005311,184.16,184.1,11.45005311]
[1752815787074,35.68,184.15,184.09,12.13005311]
[1752815787276,35.68,184.15,184.06,0.68]
[1752815787483,0.69,184.18,184.02,12.1003]
[1752815787484,35.66,184.14,184.1,11.45005311]
[1752815787683,16.78468397,184.2,184.12,11.45005311]
[1752815787888,35.66,184.19,184.14,11.45005311]
[1752815788186,28.23473708,184.2,184.14,11.45005311]
[1752815788187,11.45005311,184.2,184.14,11.45005311]
[1752815788392,35.66,184.19,184.14,0.68]
[1752815788693,11.45005311,184.26,184.18,11.45005311]
[1752815788887,16.78468397,184.28,184.21,11.45005311]
[1752815788888,35.66,184.25,184.21,11.45005311]
[1752815789086,35.66,184.25,184.18,0.68]
[1752815789289,35.66,184.24,184.2,11.45005311]
[1752815789487,35.66,184.24,184.21,11.45005311]
[1752815789694,35.66,184.24,184.2,0.68]
[1752815789998,35.66,184.24,184.21,11.45005311]
[1752815790190,35.66,184.24,184.16,26.0]
[1752815790382,11.45005311,184.23,184.17,12.13005311]
[1752815790782,11.45005311,184.21,184.15,11.45005311]
[1752815790978,11.45005311,184.16,184.05,0.68]
[1752815791181,11.45005311,184.12,184.06,11.45005311]
[1752815791503,35.66,184.17,184.11,11.45005311]
[1752815791802,35.66,184.21,184.12,33.28]
[1752815791986,35.64,184.23,184.18,11.45005311]
[1752815792190,35.64,184.23,184.15,26.0]
[1752815792191,47.09005311,184.23,184.17,11.45005311]
[1752815792501,35.64,184.23,184.18,11.45005311]
[1752815792700,47.09005311,184.23,184.16,11.45005311]
[1752815792905,35.64,184.23,184.17,11.45005311]
[1752815793302,35.64,184.23,184.15,0.68]
[1752815793303,35.64,184.23,184.18,11.45005311]
[1752815793805,20.17518397,184.3,184.21,11.45005311]
[1752815793990,11.45005311,184.28,184.22,11.45005311]
[1752815794189,35.64,184.27,184.22,11.45005311]
[1752815794389,47.09005311,184.27,184.21,11.45005311]
[1752815794803,9.93461014,184.36,184.24,26.0]
[1752815795098,11.45005311,184.34,184.29,26.0]
[1752815795302,0.69,184.36,184.3,26.0]
[1752815795498,35.62,184.33,184.25,0.68]
[1752815795712,35.62,184.33,184.31,26.0]
[1752815795897,0.06,184.38,184.31,37.45005311]
[1752815796102,47.07005311,184.37,184.34,26.0]
[1752815796688,35.62,184.37,184.35,26.0]
[1752815797322,0.06,184.38,184.37,26.0]
[1752815797612,47.11005311,184.38,184.3,26.68]
[1752815797795,11.45005311,184.35,184.3,26.68]
[1752815797999,36.35,184.38,184.27,0.68]
[1752815798204,11.45005311,184.31,184.27,0.68]
[1752815798386,35.6,184.3,184.27,0.68]
[1752815798591,35.6,184.3,184.26,11.45005311]
[1752815798820,35.6,184.3,184.23,0.68]
[1752815798821,35.6,184.3,184.28,11.45005311]
[1752815798997,35.6,184.3,184.25,11.45005311]
[1752815799197,47.05005311,184.3,184.24,11.45005311]
[1752815799719,35.6,184.3,184.26,11.45005311]
[1752815800021,35.6,184.3,184.23,26.68]
[1752815800217,35.6,184.3,184.28,26.0]
[1752815800430,47.05005311,184.3,184.28,26.0]
[1752815800720,11.45005311,184.29,184.27,5.42669632]
[1752815801021,11.45005311,184.29,184.26,5.42708587]
[1752815801528,11.45005311,184.28,184.24,5.42750007]
[1752815801690,0.69,184.29,184.24,5.42750007]
[1752815802020,11.45005311,184.29,184.24,5.42750007]
[1752815802319,0.69,184.28,184.2,5.42888165]
[1752815802515,0.69,184.28,184.16,0.68]
[1752815802516,16.78468397,184.27,184.16,0.68]
[1752815802717,11.45005311,184.21,184.16,0.68]
[1752815803019,35.6,184.3,184.16,0.68]
[1752815803020,12.14005311,184.31,184.2,11.45005311]
[1752815803192,35.56,184.3,184.26,11.45005311]
[1752815803510,35.56,184.3,184.26,12.13005311]
[1752815803716,35.56,184.3,184.26,0.68]
[1752815804097,24.13,184.35,184.28,11.45005311]
[1752815804306,23.44,184.35,184.27,0.68]
[1752815804518,35.56,184.34,184.28,5.42652485]
[1752815804843,35.56,184.34,184.31,11.45005311]
[1752815805019,47.01005311,184.34,184.28,30.44289009]
[1752815805225,11.45005311,184.33,184.28,5.42652485]
[1752815805393,11.45005311,184.31,184.26,5.42683153]
[1752815805598,11.45005311,184.3,184.26,5.42683153]
[1752815805797,35.56,184.29,184.26,5.42683153]
[1752815806027,47.01005311,184.29,184.25,31.42737401]
[1752815806203,11.45005311,184.27,184.23,5.42799761]
[1752815806410,11.45005311,184.25,184.22,5.4282841]
[1752815806608,35.54,184.24,184.19,11.45005311]
[1752815807019,35.54,184.24,184.2,11.45005311]
[1752815807195,35.54,184.24,184.21,11.45005311]
[1752815807397,35.54,184.24,184.23,11.45005311]
[1752815807600,35.54,184.24,184.23,12.13005311]
[1752815807800,35.54,184.24,184.23,0.68]
[1752815808201,0.06,184.38,184.26,26.0]
[1752815808403,0.06,184.38,184.27,26.68]
[1752815808617,0.06,184.38,184.35,5.42446433]
[1752815808823,11.45005311,184.36,184.33,5.42477208]
[1752815808998,11.45005311,184.36,184.3,39.56463495]
[1752815808999,11.45005311,184.34,184.31,5.42535924]
[1752815809207,35.52,184.33,184.29,31.42595357]
[1752815809406,11.51005311,184.38,184.32,11.45005311]
[1752815809618,35.52,184.37,184.34,11.45005311]
[1752815810635,35.52,184.37,184.35,5.42446433]
[1752815810808,35.52,184.37,184.34,5.42475413]
[1752815811008,35.52,184.37,184.28,26.0]
[1752815811220,35.52,184.37,184.24,11.45005311]
[1752815811221,0.69,184.36,184.29,11.45005311]
[1752815811416,0.06,184.38,184.33,11.45005311]
[1752815811706,35.5,184.35,184.34,11.45005311]
[1752815812019,35.5,184.35,184.33,11.45005311]
[1752815812210,35.5,184.35,184.3,0.67]
[1752815812418,35.5,184.35,184.33,11.45005311]
[1752815812618,35.5,184.35,184.33,16.87509992]
[1752815813420,35.48,184.35,184.34,11.45005311]
[1752815813941,35.48,184.35,184.33,5.42504681]
[1752815814107,35.48,184.35,184.33,16.87509992]
[1752815814929,0.06,184.38,184.33,16.87509992]
[1752815815147,0.06,184.38,184.37,11.45005311]
[1752815815331,35.54,184.38,184.34,0.67]
[1752815815503,35.54,184.38,184.37,11.45005311]
[1752815815910,46.99005311,184.38,184.33,5.42504681]
[1752815816126,11.45005311,184.36,184.3,11.45005311]
[1752815816318,11.45005311,184.36,184.28,0.67]
[1752815816319,11.45005311,184.36,184.31,11.45005311]
[1752815816518,12.16005311,184.37,184.31,11.45005311]
[1752815816735,11.45005311,184.36,184.31,11.45005311]
[1752815817026,35.54,184.38,184.32,11.45005311]
[1752815817234,35.46,184.37,184.34,11.45005311]
[1752815817405,35.46,184.37,184.31,0.67]
[1752815817406,35.46,184.37,184.32,11.45005311]
[1752815817611,35.46,184.37,184.33,11.45005311]
[1752815817811,35.46,184.37,184.31,0.67]
[1752815817812,35.46,184.37,184.32,11.45005311]
[1752815818317,35.46,184.37,184.33,11.45005311]
[1752815818709,35.46,184.37,184.34,16.8748117]
[1752815818910,35.46,184.37,184.34,5.42475859]
[1752815819532,36.17,184.37,184.31,5.42564158]
[1752815819878,11.45005311,184.32,184.2,5.42888165]
[1752815820131,11.45005311,184.26,184.2,16.87893476]
[1752815820336,35.42,184.25,184.22,11.45005311]
[1752815820527,0.06,184.38,184.23,26.67]
[1752815820727,0.06,184.38,184.34,11.45005311]
[1752815821031,11.45005311,184.36,184.28,44.99283698]
[1752815821231,11.45005311,184.33,184.28,5.42652485]
[1752815821432,0.06,184.38,184.31,26.0]
[1752815821625,0.06,184.38,184.36,11.45005311]
[1752815821826,0.06,184.38,184.37,11.45005311]
[1752815822130,0.06,184.38,184.32,0.67]
[1752815822131,0.06,184.38,184.34,0.67]
[1752815822342,0.06,184.38,184.36,11.45005311]
[1752815822629,0.06,184.38,184.36,12.12005311]
[1752815822827,0.06,184.38,184.35,11.45005311]
[1752815823014,0.06,184.38,184.34,11.45005311]
[1752815823208,11.51005311,184.38,184.29,0.67]
[1752815823437,11.45005311,184.37,184.31,11.45005311]
[1752815823645,35.4,184.36,184.31,11.45005311]
[1752815823843,11.45005311,184.35,184.29,0.67]
[1752815824026,11.45005311,184.34,184.28,11.45005311]
[1752815824220,11.45005311,184.35,184.27,5.42681934]
[1752815824540,11.45005311,184.34,184.28,11.45005311]
[1752815824740,36.11,184.36,184.23,5.42799761]
[1752815824741,35.4,184.36,184.23,5.42799761]
[1752815824918,35.4,184.36,184.23,11.45005311]
[1752815824919,11.45005311,184.29,184.23,11.45005311]
[1752815825113,35.4,184.28,184.23,11.45005311]
[1752815825341,35.4,184.28,184.24,12.12005311]
[1752815825546,35.4,184.28,184.25,0.67]
[1752815825921,35.4,184.28,184.24,11.45005311]
[1752815826142,35.4,184.28,184.22,0.67]
[1752815826324,35.4,184.28,184.22,11.45005311]
[1752815826518,35.4,184.28,184.21,11.45005311]
[1752815826714,35.4,184.28,184.23,8.3]
[1752815826928,35.4,184.28,184.23,0.67]
[1752815827140,35.4,184.28,184.23,12.12005311]
[1752815827373,46.85005311,184.28,184.23,0.67]
[1752815827921,35.4,184.28,184.23,11.45005311]
[1752815828126,46.85005311,184.28,184.22,11.45005311]
[1752815828548,11.45005311,184.27,184.21,6.09858693]
[1752815828841,5.42681934,184.27,184.18,16.87952427]
[1752815829042,13.2825,184.19,184.08,2.83393836]
[1752815829220,13.2825,184.25,184.14,11.45005311]
[1752815829421,11.45005311,184.21,184.14,11.45005311]
[1752815829647,11.45005311,184.2,184.14,11.45005311]
[1752815829829,11.45005311,184.15,184.09,0.67]
[1752815830153,11.45005311,184.15,184.06,0.03]
[1752815830154,11.45005311,184.1,184.06,0.03]
[1752815830320,35.36,184.09,184.06,0.03]
[1752815830643,35.36,184.08,184.06,0.03]
[1752815830822,60.85557116,184.27,184.06,0.03]
[1752815831023,10.0,184.3,184.24,11.45005311]
[1752815831024,0.71,184.3,184.24,11.45005311]
[1752815831243,0.06,184.38,184.22,0.67]
[1752815831244,11.45005311,184.31,184.22,0.67]
[1752815831422,11.45005311,184.28,184.22,0.67]
[1752815831737,0.71,184.31,184.22,12.12005311]
[1752815831940,11.45005311,184.27,184.19,0.67]
[1752815832145,46.81005311,184.3,184.23,11.45005311]
[1752815832338,11.45005311,184.29,184.22,11.45005311]
[1752815832648,11.45005311,184.27,184.21,0.67]
[1752815833317,11.45005311,184.25,184.18,12.12005311]
[1752815833524,11.45005311,184.21,184.13,0.67]
[1752815833827,11.45005311,184.14,184.03,16.281784]
[1752815834027,35.34,184.13,184.12,11.45005311]
[1752815834336,0.71,184.2,184.12,11.45005311]
[1752815834524,11.45005311,184.17,184.11,11.45005311]
[1752815834731,11.45005311,184.17,184.06,5.46296336]
[1752815834732,0.71,184.17,184.08,11.45005311]
[1752815834924,0.71,184.17,184.06,5.46296336]
[1752815834925,16.88016556,184.16,184.09,11.45005311]
[1752815835154,16.88016556,184.16,184.07,0.67]
[1752815835327,11.45005311,184.14,184.07,12.12005311]
[1752815835528,5.43011245,184.16,184.07,12.12005311]
[1752815835529,35.32,184.13,184.08,11.45005311]
[1752815835940,35.32,184.13,184.07,0.67]
[1752815836265,35.32,184.13,184.08,11.45005311]
[1752815836433,40.7510643,184.13,184.07,12.12005311]
[1752815836752,40.7510643,184.13,184.06,0.03]
[1752815837124,11.45005311,184.11,184.06,0.03]
[1752815837341,11.45005311,184.12,184.06,11.48005311]
[1752815837559,40.7510643,184.13,184.06,0.03]
[1752815837728,35.32,184.12,184.06,0.7]
[1752815837927,35.32,184.11,184.06,0.03]
[1752815838446,40.75164253,184.11,184.06,0.03]
[1752815838647,40.75165498,184.11,184.06,0.03]
[1752815839064,52.20170809,184.11,184.06,0.03]
[1752815839358,0.71,184.1,184.06,0.03]
[1752815839659,35.32,184.1,184.09,11.45005311]
[1752815839845,35.32,184.1,184.09,12.12005311]
[1752815840032,35.32,184.1,184.09,11.45005311]
[1752815840433,11.45005311,184.19,184.09,12.12005311]
[1752815840638,6.13858693,184.21,184.11,26.0]
[1752815840850,12.4552,184.3,184.2,37.45005311]
[1752815841051,35.3,184.29,184.21,0.67]
[1752815841237,35.3,184.29,184.18,0.71]
[1752815841238,11.45005311,184.24,184.18,0.71]
[1752815841452,11.45005311,184.26,184.19,11.45005311]
[1752815841631,11.45005311,184.25,184.19,11.45005311]
[1752815841836,11.45005311,184.25,184.18,38.16005311]
[1752815842261,5.42711386,184.26,184.2,11.45005311]
[1752815843040,35.98,184.29,184.19,5.42917639]
[1752815843239,14.24267738,184.33,184.26,11.45005311]
[1752815843456,46.75005311,184.31,184.25,11.45005311]
[1752815843638,46.75005311,184.31,184.2,0.71]
[1752815843639,46.75005311,184.31,184.24,11.45005311]
[1752815843832,35.3,184.31,184.26,11.45005311]
[1752815844030,35.28,184.3,184.27,11.45005311]
[1752815844250,28.86551851,184.32,184.27,11.45005311]
[1752815844455,0.06,184.34,184.28,0.71]
[1752815844650,35.34,184.34,184.28,0.71]
[1752815844960,35.28,184.33,184.32,11.45005311]
[1752815845269,0.06,184.34,184.31,11.45005311]
[1752815845439,35.34,184.34,184.31,11.45005311]
[1752815845634,40.76481164,184.34,184.27,26.0]
[1752815845854,35.34,184.34,184.3,11.45005311]
[1752815846258,40.76477766,184.34,184.31,11.45005311]
[1752815846645,40.76477766,184.34,184.25,5.4271955]
[1752815846837,52.21483077,184.34,184.24,6.13767867]
[1752815847038,11.45005311,184.33,184.24,6.13767867]
[1752815847239,11.45005311,184.32,184.26,11.45005311]
[1752815847868,11.45005311,184.3,184.2,0.5]
[1752815848169,35.92,184.29,184.23,11.45005311]
[1752815848369,0.68,184.33,184.28,11.45005311]
[1752815848542,35.24,184.32,184.28,11.45005311]
[1752815848873,35.24,184.32,184.27,11.45005311]
[1752815849165,35.92,184.32,184.27,11.45005311]
[1752815849373,35.24,184.31,184.24,12.16005311]
[1752815849540,35.24,184.31,184.29,11.45005311]
[1752815849746,35.24,184.31,184.3,11.45005311]
[1752815850266,5.4847914,184.34,184.3,11.45005311]
[1752815850562,35.22,184.33,184.3,11.45005311]
[1752815850759,35.22,184.33,184.31,11.45005311]
[1752815850965,35.22,184.33,184.3,11.45005311]
[1752815851958,35.22,184.33,184.3,0.5]
[1752815852371,40.64533438,184.33,184.3,0.5]
[1752815852572,0.06,184.34,184.3,0.5]
[1752815852738,0.06,184.34,184.33,11.45005311]
[1752815852942,0.06,184.38,184.33,38.66005311]
[1752815853163,0.06,184.38,184.37,11.45005311]
[1752815854043,0.06,184.38,184.34,11.45005311]
[1752815854256,0.06,184.38,184.35,11.45005311]
[1752815854963,12.19005311,184.38,184.33,0.5]
[1752815855164,11.45005311,184.36,184.3,11.45005311]
[1752815855464,35.18,184.35,184.31,26.0]
[1752815855771,47.31005311,184.35,184.29,11.45005311]
[1752815855947,11.45005311,184.34,184.28,11.45005311]
[1752815856148,11.45005311,184.33,184.25,5.42736044]
[1752815856367,11.45005311,184.31,184.25,11.45005311]
[1752815856667,35.86,184.3,184.23,11.45005311]
[1752815856848,35.86,184.3,184.2,0.71]
[1752815856849,5.42521253,184.33,184.28,11.45005311]
[1752815857053,35.16,184.32,184.31,11.45005311]
[1752815857471,35.16,184.32,184.28,0.71]
[1752815857766,35.16,184.32,184.31,11.45005311]
[1752815857973,0.06,184.38,184.31,11.95005311]
[1752815858144,35.16,184.37,184.35,11.45005311]
[1752815858346,0.06,184.38,184.36,11.45005311]
[1752815858555,35.16,184.37,184.36,11.45005311]
[1752815858772,35.16,184.37,184.35,11.95005311]
[1752815860176,35.84,184.37,184.35,0.5]
[1752815860671,12.13005311,184.36,184.3,11.45005311]
[1752815860851,11.45005311,184.35,184.3,0.5]
[1752815861051,11.45005311,184.33,184.3,0.5]
[1752815861252,46.59005311,184.32,184.26,11.95005311]
[1752815861549,11.45005311,184.31,184.26,0.5]
[1752815861750,35.82,184.32,184.24,11.45005311]
[1752815861974,11.45005311,184.31,184.25,11.45005311]
[1752815862745,11.45005311,184.31,184.24,16.87769272]
[1752815862981,11.45005311,184.3,184.24,11.45005311]
[1752815863278,35.12,184.31,184.29,11.45005311]
[1752815863462,35.12,184.31,184.3,11.45005311]
[1752815863774,47.25005311,184.31,184.27,0.5]
[1752815863972,35.12,184.31,184.27,0.5]
[1752815864158,46.57005311,184.31,184.27,0.5]
[1752815864357,11.45005311,184.3,184.27,0.5]
[1752815864558,35.12,184.31,184.28,5.42652485]
[1752815865077,35.12,184.31,184.27,0.5]
[1752815865281,47.25005311,184.31,184.27,0.5]
[1752815865463,35.8,184.31,184.27,0.5]
[1752815865648,35.8,184.31,184.27,5.92680988]
[1752815865649,35.12,184.31,184.27,5.92680988]
[1752815866171,46.57005311,184.31,184.27,0.5]
[1752815866566,35.12,184.31,184.27,5.92669605]
[1752815866768,35.12,184.31,184.27,5.42669605]
[1752815867160,46.57005311,184.31,184.25,5.42740841]
[1752815867364,11.45005311,184.29,184.28,0.03]
[1752815868077,12.13005311,184.3,184.28,0.03]
[1752815868278,46.57005311,184.31,184.28,0.03]
[1752815868789,11.45005311,184.3,184.28,0.03]
[1752815869659,47.25005311,184.31,184.28,0.03]
[1752815870080,11.45005311,184.3,184.28,0.03]
[1752815870380,35.12,184.31,184.28,0.03]
[1752815870584,0.68,184.3,184.28,0.03]
[1752815871595,12.16005311,184.29,184.28,0.53]
[1752815871962,0.71,184.29,184.28,0.03]
[1752815872282,35.04,184.29,184.28,0.03]
[1752815872893,35.75,184.29,184.28,0.53]
[1752815873074,47.20005311,184.29,184.28,0.53]
[1752815873787,52.6262835,184.29,184.28,0.03]
[1752815873985,66.19185949,184.29,184.24,0.5]
[1752815874284,16.78468397,184.21,184.08,5.43242068]
[1752815874460,16.78468397,184.21,184.1,11.45005311]
[1752815874461,35.73,184.2,184.1,11.45005311]
[1752815874660,11.45005311,184.24,184.18,11.45005311]
[1752815874661,5.42775802,184.24,184.18,11.45005311]
[1752815874875,16.3431,184.29,184.15,0.68]
[1752815874876,12.16005311,184.26,184.15,0.68]
[1752815875164,11.45005311,184.22,184.15,11.45005311]
[1752815875365,35.02,184.21,184.14,26.0]
[1752815875665,0.71,184.28,184.2,11.45005311]
[1752815875866,35.0,184.27,184.22,11.45005311]
[1752815876058,13.1205,184.29,184.25,11.45005311]
[1752815876362,0.06,184.34,184.27,11.45005311]
[1752815876686,0.06,184.34,184.3,26.0]
[1752815876895,0.06,184.34,184.31,11.45005311]
[1752815877064,0.06,184.34,184.33,11.45005311]
[1752815877464,0.06,184.34,184.33,12.13005311]
[1752815877891,0.06,184.34,184.33,38.13005311]
[1752815878563,0.06,184.38,184.37,26.0]
[1752815878764,0.06,184.42,184.37,65.68479019]
[1752815878963,0.06,184.42,184.38,0.68]
[1752815879465,0.06,184.42,184.41,11.45005311]
[1752815879676,0.06,184.42,184.4,11.45005311]
[1752815880197,11.51005311,184.42,184.3,25.76731301]
[1752815880487,11.45005311,184.39,184.32,11.45005311]
[1752815880699,46.41005311,184.38,184.3,0.68]
[1752815880866,11.45005311,184.34,184.27,5.42681934]
[1752815881064,11.45005311,184.28,184.18,0.68]
[1752815881283,34.96,184.27,184.23,11.45005311]
[1752815881494,13.04792765,184.37,184.26,11.45005311]
[1752815881495,0.71,184.36,184.26,11.45005311]
[1752815881664,17.7729264,184.39,184.33,11.45005311]
[1752815881860,34.96,184.36,184.33,11.45005311]
[1752815882193,34.96,184.36,184.29,11.45005311]
[1752815882194,12.16005311,184.35,184.29,11.45005311]
[1752815882489,17.7729264,184.39,184.34,11.45005311]
[1752815882490,12.3496,184.39,184.34,11.45005311]
[1752815882687,34.94,184.38,184.36,11.45005311]
[1752815883078,34.94,184.38,184.37,11.45005311]
[1752815883388,34.94,184.38,184.36,11.45005311]
[1752815884314,34.94,184.38,184.34,5.42462706]
[1752815884600,34.94,184.38,184.35,11.45005311]
[1752815884818,34.94,184.38,184.32,5.42506471]
[1752815884990,11.45005311,184.37,184.31,11.45005311]
[1752815885191,11.45005311,184.35,184.29,11.45005311]
[1752815885384,11.45005311,184.35,184.28,11.45005311]
[1752815885585,11.45005311,184.33,184.27,11.45005311]
[1752815885807,34.92,184.32,184.26,16.87716697]
[1752815886107,34.92,184.32,184.3,11.45005311]
[1752815886311,34.92,184.32,184.31,11.45005311]
[1752815886610,34.9,184.36,184.31,12.13005311]
[1752815886910,34.9,184.36,184.34,11.45005311]
[1752815887295,34.9,184.36,184.35,11.45005311]
[1752815887612,34.9,184.36,184.33,26.0]
[1752815887905,34.9,184.36,184.3,31.42593597]
[1752815888098,34.9,184.36,184.32,11.45005311]
[1752815888305,34.9,184.36,184.33,5.42505289]
[1752815888707,34.9,184.36,184.33,16.875106]
[1752815889404,34.9,184.36,184.32,11.48005311]
[1752815889617,47.06005311,184.36,184.35,0.03]
[1752815890618,34.9,184.36,184.35,0.03]
[1752815891412,0.06,184.42,184.35,0.03]
[1752815891713,34.86,184.41,184.35,0.03]
[1752815891906,11.45005311,184.4,184.35,0.03]
[1752815892210,11.45005311,184.37,184.35,0.03]
[1752815892392,46.31005311,184.36,184.35,0.03]
[1752815892706,46.31005311,184.36,184.35,0.53]
[1752815893091,47.02005311,184.36,184.35,0.03]
[1752815893282,34.86,184.36,184.35,0.03]
[1752815893483,0.06,184.42,184.35,12.66005311]
[1752815893704,0.06,184.42,184.35,0.03]
[1752815893705,11.45005311,184.38,184.35,0.03]
[1752815893911,42.78468397,184.32,184.28,0.03]
[1752815894212,11.45005311,184.3,184.28,0.03]
[1752815894506,16.78468397,184.28,184.12,6.11124049]
[1752815894820,11.45005311,184.17,184.11,16.8815507]
[1752815894999,11.45005311,184.12,184.07,0.2]
[1752815895306,46.27005311,184.11,184.07,0.2]
[1752815895504,34.82,184.1,184.07,0.2]
[1752815896310,46.27005311,184.1,184.07,0.2]
[1752815896515,35.53,184.1,184.07,0.2]
[1752815896712,35.53,184.1,184.07,17.08270284]
[1752815896713,34.82,184.1,184.07,17.08270284]
[1752815896900,34.82,184.1,184.07,5.63264973]
[1752815897207,34.82,184.12,184.09,11.45005311]
[1752815897412,34.82,184.12,184.08,0.68]
[1752815897413,34.82,184.12,184.11,11.45005311]
[1752815897598,13.0351,184.22,184.14,26.0]
[1752815897906,24.15,184.27,184.2,11.45005311]
[1752815898115,34.82,184.26,184.21,11.45005311]
[1752815898493,34.82,184.26,184.22,11.45005311]
[1752815898684,34.82,184.26,184.21,11.45005311]
[1752815899010,34.82,184.26,184.22,11.45005311]
[1752815899312,11.45005311,184.27,184.21,11.45005311]
[1752815899512,34.8,184.3,184.26,11.45005311]
[1752815899689,34.8,184.3,184.27,11.45005311]
[1752815900089,34.8,184.3,184.22,26.68]
[1752815900090,34.8,184.3,184.26,11.45005311]
[1752815900311,34.8,184.3,184.28,11.45005311]
[1752815900612,11.45005311,184.37,184.29,17.5562835]
[1752815900916,34.8,184.36,184.31,11.45005311]
[1752815901692,11.45005311,184.35,184.29,18.99180638]
[1752815902012,11.45005311,184.34,184.29,5.42623039]
[1752815902199,11.45005311,184.32,184.26,11.45005311]
[1752815902400,0.66,184.33,184.19,27.14588196]
[1752815902401,11.45005311,184.28,184.21,16.87864004]
[1752815902610,0.66,184.3,184.22,11.45005311]
[1752815902930,11.45005311,184.29,184.23,11.45005311]
[1752815903218,12.11005311,184.3,184.22,13.57004287]
[1752815903391,12.11005311,184.3,184.24,11.45005311]
[1752815904120,12.11005311,184.3,184.22,13.57004287]
[1752815904121,11.45005311,184.28,184.22,13.57004287]
[1752815904309,11.45005311,184.28,184.22,25.02009598]
[1752815904517,11.45005311,184.28,184.22,30.44838823]
[1752815904819,11.45005311,184.25,184.22,5.42829225]
[1752815904996,34.76,184.24,184.22,5.42829225]
[1752815905921,34.76,184.24,184.21,5.42858693]
[1752815906504,34.76,184.24,184.23,11.45005311]
[1752815906710,4.55025401,184.24,184.23,12.17005311]
[1752815907009,0.66,184.33,184.24,26.0]
[1752815907010,34.74,184.29,184.24,26.0]
[1752815907204,34.74,184.29,184.25,11.45005311]
[1752815907425,34.74,184.29,184.24,37.45005311]
[1752815907800,34.74,184.29,184.24,26.0]
[1752815908112,46.19005311,184.29,184.25,5.42740841]
[1752815908299,34.74,184.29,184.25,16.87746152]
[1752815908711,46.85005311,184.29,184.25,5.42740841]
[1752815908917,11.45005311,184.27,184.25,5.42740841]
[1752815909324,11.45005311,184.26,184.21,5.42858693]
[1752815909526,11.45005311,184.22,184.18,5.42947116]
[1752815909722,17.49313572,184.29,184.09,0.72]